bitfinex/quotes_ETHUSD_20260108
["timestamp","ask_amount","ask_price","bid_price","bid_amount"]
[1767869680906,0.84,3123.3,3123.0,0.90148651]
[1767869683607,0.98057671,3123.2,3122.5,6.40512408]
[1767869683816,0.98057671,3123.2,3122.6,0.90148651]
[1767869685741,0.98057671,3123.2,3122.7,3.20235693]
[1767869686136,0.98057671,3123.2,3122.7,6.40471386]
[1767869690526,0.84,3123.3,3122.7,7.30620037]
[1767869690920,0.84,3123.3,3123.0,0.001]
[1767869694343,1.82057671,3123.3,3123.0,0.001]
[1767869696690,0.84,3123.3,3123.0,0.001]
[1767869696855,0.98057671,3123.2,3122.8,0.03202254]
[1767869697054,0.84,3123.1,3122.7,3.20233906]
[1767869697788,0.84,3123.1,3122.8,0.90148651]
[1767869698164,18.4042241,3130.9,3125.4,0.90148651]
[1767869698165,0.002,3126.1,3125.4,0.90148651]
[1767869698369,0.002,3126.1,3124.5,0.03211458]
[1767869698370,0.12810916,3126.3,3125.7,0.90148651]
[1767869698588,0.98057671,3126.8,3125.8,0.90148651]
[1767869698890,0.98057671,3126.9,3125.9,0.90148651]
[1767869699053,0.04396507,3126.7,3126.1,3.19881116]
[1767869699259,0.04396507,3126.7,3126.2,0.29579399]
[1767869699453,0.04396507,3126.7,3126.3,0.15388547]
[1767869699687,0.04396507,3126.7,3126.1,3.19884593]
[1767869699890,1.0866251,3126.7,3126.0,0.90148651]
[1767869700091,1.0866251,3126.7,3126.0,4.10045569]
[1767869700292,0.003,3127.1,3125.4,0.84]
[1767869700293,0.003,3127.1,3126.7,0.90148651]
[1767869700490,0.94183799,3127.7,3126.9,0.90148651]
[1767869700864,4.13908261,3127.7,3126.9,0.90148651]
[1767869701380,4.13908281,3127.7,3126.9,0.90148651]
[1767869701558,0.94183799,3127.1,3126.1,0.90148651]
[1767869701760,0.84,3127.3,3126.4,3.19853304]
[1767869701970,0.84,3127.3,3126.1,0.90148651]
[1767869702183,0.84,3127.3,3126.4,3.19856124]
[1767869702379,0.94183799,3127.4,3126.1,0.90148651]
[1767869702590,0.94183799,3127.4,3126.2,3.19874539]
[1767869702890,4.52681751,3127.1,3126.1,0.90148651]
[1767869703107,0.94183799,3127.0,3126.1,0.90148651]
[1767869703899,0.93189168,3126.7,3126.1,0.90148651]
[1767869704057,0.93189168,3126.5,3126.1,0.90148651]
[1767869704883,0.93189168,3126.5,3125.7,0.95041128]
[1767869706989,4.13037547,3126.5,3125.7,0.95041128]
[1767869707207,0.49703755,3126.4,3125.7,0.95041128]
[1767869707512,0.49703755,3126.4,3125.8,0.95041128]
[1767869707679,0.93189168,3126.5,3125.8,0.95041128]
[1767869710195,4.1303658,3126.5,3125.8,0.95041128]
[1767869710498,0.93189168,3126.5,3125.8,0.95041128]
[1767869711299,4.13035933,3126.5,3125.8,0.95041128]
[1767869711686,0.93189168,3126.4,3125.4,0.95041128]
[1767869711872,0.93189168,3125.9,3125.0,0.95041128]
[1767869712203,3.19887399,3126.1,3125.0,0.95041128]
[1767869712204,0.93189168,3125.7,3125.0,0.95041128]
[1767869713314,0.93189168,3125.7,3124.8,0.95041128]
[1767869713626,0.93189168,3125.7,3124.9,1.2428049]
[1767869713784,0.93189168,3125.7,3124.9,0.95041128]
[1767869714185,4.13118463,3125.7,3124.9,0.95041128]
[1767869715214,0.93189168,3125.7,3125.3,0.001]
[1767869715419,4.94820867,3125.7,3125.3,0.001]
[1767869717321,0.93189168,3125.6,3124.2,0.95041128]
[1767869717618,0.93189168,3125.6,3124.3,0.95041128]
[1767869718307,13.61420379,3125.7,3124.3,0.95041128]
[1767869718308,0.93189168,3125.4,3124.3,0.95041128]
[1767869718513,0.003,3128.9,3126.4,0.95041128]
[1767869718692,0.003,3128.9,3126.7,0.95041128]
[1767869718693,3.19902153,3128.9,3126.7,0.95041128]
[1767869718887,0.93189168,3128.7,3127.4,0.95041128]
[1767869719098,0.003,3128.9,3127.4,0.95041128]
[1767869719099,0.93489168,3128.9,3127.4,0.95041128]
[1767869719339,0.003,3128.9,3127.6,0.98252586]
[1767869719526,0.003,3128.9,3127.8,0.95041128]
[1767869719897,0.003,3128.9,3128.0,0.95041128]
[1767869720197,0.003,3128.9,3128.2,3.19672655]
[1767869720411,0.003,3128.9,3128.3,0.95041128]
[1767869720923,0.003,3128.9,3128.1,3.99682287]
[1767869721302,0.003,3128.9,3128.2,0.95041128]
[1767869721730,0.003,3128.9,3128.1,0.8]
[1767869722025,0.22795559,3128.9,3128.1,3.99682011]
[1767869722393,0.22795559,3128.9,3128.1,0.8]
[1767869722596,0.22795559,3128.9,3128.1,4.94723251]
[1767869722826,0.22795559,3128.9,3128.2,0.95041128]
[1767869725325,0.22795559,3128.9,3128.1,0.8]
[1767869725518,0.22795559,3128.9,3128.2,3.19670432]
[1767869725723,0.22795559,3128.9,3128.1,3.99680368]
[1767869725904,0.22795559,3128.9,3128.1,0.8]
[1767869726104,0.22795559,3128.9,3128.1,3.99681361]
[1767869726724,0.002,3128.6,3128.1,3.99681361]
[1767869726954,0.002,3128.6,3128.2,3.19670853]
[1767869727112,0.005,3128.9,3128.6,1e-08]
[1767869730006,0.005,3128.9,3128.3,7.343637]
[1767869730207,0.005,3128.9,3128.4,0.95041128]
[1767869730617,0.005,3128.9,3128.3,3.19660136]
[1767869730821,0.005,3128.9,3128.4,0.72323134]
[1767869731223,0.005,3128.9,3128.4,3.91965691]
[1767869731425,0.005,3128.9,3128.2,4.9861132]
[1767869731426,0.93189168,3128.8,3128.1,1.61442429]
[1767869731628,0.93189168,3128.8,3128.1,0.8]
[1767869731830,0.93189168,3128.6,3127.2,0.98238876]
[1767869732037,0.93189168,3128.6,3127.6,4.14767957]
[1767869732613,0.93189168,3128.6,3127.6,0.95041128]
[1767869732817,1.1546737,3128.5,3127.6,0.95041128]
[1767869733131,1.1546737,3128.5,3127.5,3.19739514]
[1767869733531,0.97758453,3128.4,3127.4,3.19754428]
[1767869733835,3.19636713,3128.6,3127.5,0.99587896]
[1767869734044,3.19636713,3128.6,3127.7,0.99587896]
[1767869734609,3.19636713,3128.6,3127.6,0.73909675]
[1767869734815,0.97758453,3128.4,3127.0,3.19791235]
[1767869735046,0.97758453,3128.4,3127.1,3.19778952]
[1767869735649,0.97758453,3128.2,3126.3,3.19861667]
[1767869735857,0.00010938,3130.2,3128.3,0.99587896]
[1767869736054,0.97758453,3131.6,3129.9,0.99587896]
[1767869736227,2.08426876,3130.9,3130.3,0.96430431]
[1767869736545,2.08426876,3130.9,3129.5,0.82335354]
[1767869736752,0.00116357,3130.3,3129.6,0.29103529]
[1767869737049,3.06185329,3130.9,3129.2,19.10022442]
[1767869737250,3.06185329,3130.9,3128.9,0.19211458]
[1767869737251,0.97758453,3130.8,3128.9,0.19211458]
[1767869737415,0.97758453,3130.8,3129.0,0.839]
[1767869737619,0.97758453,3130.8,3129.1,24.11953588]
[1767869737946,0.97758453,3130.8,3129.1,20.92372878]
[1767869738148,0.30618533,3130.7,3129.2,2.93137288]
[1767869738337,0.30618533,3130.7,3129.2,0.839]
[1767869739615,0.97758453,3130.6,3129.3,6.3912057]
[1767869739816,0.002,3130.2,3129.3,6.3912057]
[1767869740451,0.002,3130.2,3129.3,9.58680855]
[1767869741644,0.002,3130.2,3129.3,6.3912057]
[1767869741818,0.002,3130.2,3129.4,0.62136276]
[1767869743221,0.65903062,3130.1,3129.4,0.62136276]
[1767869743647,0.65903062,3130.1,3129.5,6.39079724]
[1767869744641,0.65903062,3130.1,3128.9,0.03211458]
[1767869744835,0.65903062,3130.1,3129.4,3.19549098]
[1767869745041,0.82289214,3130.1,3129.4,3.19549098]
[1767869745254,0.82289214,3130.1,3129.3,3.19555932]
[1767869745438,0.82289214,3130.1,3129.2,3.19565893]
[1767869745622,0.97758453,3130.0,3128.3,0.03211458]
[1767869745821,0.97758453,3129.8,3128.6,0.03211458]
[1767869746042,0.839,3129.7,3128.6,0.06407775]
[1767869746440,0.839,3129.7,3128.6,0.03196317]
[1767869746653,1.81658453,3129.7,3128.4,6.39304436]
[1767869746940,0.97758453,3129.6,3128.5,0.06407878]
[1767869747148,1.15924298,3129.6,3128.6,0.64571231]
[1767869747533,3.06185329,3129.5,3128.6,0.64571231]
[1767869747744,3.06185329,3129.5,3128.6,3.84200604]
[1767869747927,0.97758453,3129.4,3128.5,3.19639771]
[1767869748122,0.97758453,3129.4,3128.6,3.19630226]
[1767869748642,0.97758453,3129.4,3128.5,3.19641933]
[1767869749139,0.97758453,3129.4,3128.0,0.03211458]
[1767869749140,0.97758453,3129.4,3128.6,3.48844214]
[1767869749348,0.97758453,3129.4,3128.7,0.29215737]
[1767869749762,0.97758453,3129.3,3128.7,0.29215737]
[1767869749928,0.97758453,3129.3,3128.7,3.48836393]
[1767869750128,3.06185329,3129.2,3128.8,0.29215737]
[1767869750327,3.06185329,3129.2,3128.0,3.26097909]
[1767869750546,3.06185329,3129.2,3128.2,0.03211458]
[1767869750745,3.06185329,3129.2,3128.5,3.19637492]
[1767869750952,3.90085329,3129.2,3128.6,0.29226547]
[1767869751257,3.90085329,3129.2,3128.7,0.29226547]
[1767869751759,3.90085329,3129.2,3128.8,0.29226547]
[1767869751957,3.90085329,3129.2,3128.6,3.19631671]
[1767869752150,3.90085329,3129.2,3128.7,0.29232939]
[1767869752460,3.90085329,3129.2,3128.8,0.29232939]
[1767869752658,3.90085329,3129.2,3128.5,3.19637986]
[1767869752855,0.97758453,3129.1,3128.6,0.29236006]
[1767869753060,0.97758453,3129.1,3127.9,0.06408491]
[1767869753267,0.97758453,3129.1,3128.0,0.29240474]
[1767869753433,0.97758453,3129.1,3128.3,3.19374279]
[1767869753628,0.97758453,3128.9,3128.4,0.29240474]
[1767869753832,0.97758453,3128.9,3128.4,3.48892]
[1767869754136,0.97758453,3128.9,3128.5,0.29240474]
[1767869754475,0.97758453,3128.9,3128.6,0.29240474]
[1767869754653,0.97758453,3128.9,3127.6,0.03211458]
[1767869754828,0.97758453,3128.9,3127.7,0.29256792]
[1767869755029,0.97758453,3128.8,3128.0,3.19690366]
[1767869755231,0.4173442,3128.9,3128.1,0.29256792]
[1767869755232,0.97758453,3128.6,3128.1,0.29256792]
[1767869755438,0.97758453,3128.6,3127.3,0.03297646]
[1767869755639,0.97758453,3128.6,3128.0,3.19686877]
[1767869755939,0.97758453,3128.6,3127.5,6.39484327]
[1767869756269,0.97758453,3128.6,3127.6,0.96244723]
[1767869756835,0.97758453,3128.6,3127.5,3.19740123]
[1767869756836,0.97758453,3128.5,3127.5,3.19740123]
[1767869757342,0.97758453,3128.5,3127.4,3.19749764]
[1767869757558,0.97758453,3128.5,3127.4,6.39504192]
[1767869758064,2.08426876,3128.3,3127.3,0.001]
[1767869758264,1.81658453,3128.2,3127.3,0.001]
[1767869758568,0.97758453,3128.1,3127.3,0.001]
[1767869759973,0.97758453,3128.0,3127.3,0.001]
[1767869760668,0.97758453,3127.8,3127.3,0.001]
[1767869760840,0.839,3127.7,3127.3,0.001]
[1767869763382,1.77175249,3127.7,3127.3,0.001]
[1767869763744,0.97773922,3127.6,3127.3,0.001]
[1767869764144,3.06200798,3127.6,3127.3,0.001]
[1767869764380,2.08426876,3127.6,3127.3,0.001]
[1767869764577,1.81673922,3127.7,3127.3,0.001]
[1767869765659,0.839,3127.7,3127.3,0.001]
[1767869765860,0.837,3127.7,3127.3,0.001]
[1767869766062,0.97773922,3127.9,3127.3,0.001]
[1767869766281,1.81673922,3127.8,3127.3,0.001]
[1767869766461,0.839,3127.7,3127.3,0.001]
[1767869767471,0.97773922,3127.7,3127.3,0.001]
[1767869767668,6.56743689,3129.5,3127.3,0.001]
[1767869767669,0.97773922,3128.9,3127.3,0.001]
[1767869767873,0.97773922,3128.0,3127.3,0.001]
[1767869768072,0.839,3128.1,3127.7,0.01975586]
[1767869768595,0.97773922,3129.2,3127.8,0.94506163]
[1767869768890,0.97773922,3129.1,3127.8,0.91294705]
[1767869769193,0.97773922,3129.1,3127.9,1.64886209]
[1767869770053,0.97773922,3129.1,3128.0,0.91294705]
[1767869770570,0.97773922,3128.9,3127.9,0.73591504]
[1767869770761,0.97773922,3128.9,3128.0,0.91294705]
[1767869770960,0.97773922,3128.9,3128.1,0.80428986]
[1767869771599,0.002,3129.3,3128.6,0.91294705]
[1767869772501,0.002,3129.3,3128.7,6.39243136]
[1767869772789,0.002,3129.3,3128.8,0.91294705]
[1767869774590,0.002,3129.3,3128.8,4.10898469]
[1767869774789,0.002,3129.3,3129.0,0.91294705]
[1767869775097,0.002,3129.3,3128.7,3.196156]
[1767869775460,0.002,3129.3,3128.5,0.91294705]
[1767869775669,0.97973922,3129.3,3128.6,3.196305]
[1767869775875,0.002,3129.0,3128.6,3.19631166]
[1767869776071,0.002,3129.0,3128.5,3.19638768]
[1767869776394,0.002,3129.0,3128.5,3.92698156]
[1767869777196,0.002,3129.0,3128.5,0.73059388]
[1767869777400,0.002,3129.0,3128.3,0.91294705]
[1767869777600,0.002,3129.0,3128.4,3.19648065]
[1767869777768,0.002,3129.0,3128.3,0.91294705]
[1767869778097,0.97973922,3129.0,3128.0,0.91294705]
[1767869778270,0.97973922,3129.0,3128.0,1.09135321]
[1767869778879,0.97973922,3129.0,3128.2,3.19666181]
[1767869779577,0.97973922,3129.0,3128.0,4.28826949]
[1767869780604,0.97973922,3129.0,3128.2,3.19668432]
[1767869781775,0.97973922,3129.0,3128.2,0.91294705]
[1767869783178,1.39728439,3129.0,3128.2,0.91294705]
[1767869784199,1.39728439,3129.0,3128.2,4.10964347]
[1767869785178,0.97773922,3128.9,3128.2,3.19669642]
[1767869785488,0.97773922,3128.9,3128.0,1.09135321]
[1767869785809,0.97773922,3128.9,3128.1,3.19677306]
[1767869786101,0.97773922,3128.9,3127.8,3.1971018]
[1767869786102,0.97773922,3128.8,3127.8,3.1971018]
[1767869786301,0.97773922,3128.8,3128.0,0.91294705]
[1767869786475,0.97973922,3129.0,3128.1,0.91294705]
[1767869787893,0.002,3128.7,3128.1,0.91294705]
[1767869788810,0.002,3128.7,3128.2,3.19672655]
[1767869791097,0.002,3128.7,3128.1,4.10973131]
[1767869792911,0.002,3128.7,3128.1,7.30656005]
[1767869793281,0.002,3128.7,3128.1,4.10973131]
[1767869793976,0.002,3128.7,3128.1,0.91294705]
[1767869794215,0.91058199,3128.7,3128.0,3.19687018]
[1767869794383,0.91058199,3128.7,3128.1,3.19681529]
[1767869794584,0.91058199,3128.7,3128.0,3.19692009]
[1767869795109,0.90858199,3128.6,3127.7,4.17571849]
[1767869795678,0.90858199,3128.6,3127.9,3.19702165]
[1767869796599,0.90858199,3128.6,3127.8,3.19708895]
[1767869796987,0.90858199,3128.6,3127.7,4.17571849]
[1767869797188,0.90858199,3128.6,3127.8,3.19713536]
[1767869797528,0.90858199,3128.6,3127.8,6.39427072]
[1767869797811,0.90858199,3128.6,3127.8,3.19713536]
[1767869799622,0.002,3128.3,3127.8,3.19713536]
[1767869799823,0.002,3128.3,3127.8,4.91301377]
[1767869800124,0.002,3128.3,3127.8,8.11014913]
[1767869801624,0.002,3128.3,3127.8,4.91301377]
[1767869802887,0.002,3128.3,3127.8,4.17562956]
[1767869803345,0.91058199,3128.3,3127.8,3.19713536]
[1767869803514,0.91058199,3128.3,3127.7,3.19723758]
[1767869803727,0.002,3128.3,3127.7,4.17573178]
[1767869803895,0.002,3128.3,3127.8,0.9784942]
[1767869805197,0.91058199,3128.3,3127.7,3.19723758]
[1767869805594,0.91058199,3128.3,3127.6,3.19833981]
[1767869805795,0.91058199,3128.3,3127.6,3.92181606]
[1767869806117,0.91058199,3128.3,3127.6,0.001]
[1767869806118,0.90858199,3128.2,3127.6,0.001]
[1767869807635,0.90858199,3128.1,3127.6,0.001]
[1767869808693,0.90858199,3128.1,3126.8,0.9784942]
[1767869808694,0.90858199,3127.9,3126.8,0.9784942]
[1767869808912,0.90858199,3127.9,3127.1,4.17634403]
[1767869809109,1.08334019,3127.9,3126.8,1.49550984]
[1767869809318,1.08334019,3127.9,3126.8,0.9784942]
[1767869809511,1.08334019,3127.9,3127.0,3.19788408]
[1767869809837,3.19655882,3128.4,3127.0,3.19788408]
[1767869809838,0.90858199,3131.3,3129.4,0.03211458]
[1767869810035,0.90858199,3131.3,3129.2,0.03211458]
[1767869810036,0.90858199,3131.1,3130.5,1.95886573]
[1767869810200,0.90858199,3131.1,3129.9,1e-07]
[1767869810201,1e-08,3130.9,3129.9,1e-07]
[1767869810405,1e-08,3130.9,3130.2,0.13338581]
[1767869810700,1e-08,3130.9,3129.9,1e-07]
[1767869810907,1e-08,3130.9,3129.9,0.79704308]
[1767869811636,1e-08,3130.9,3130.0,10.38170749]
[1767869811803,1e-08,3130.9,3130.0,11.41987825]
[1767869812220,0.002,3130.6,3130.0,11.41987825]
[1767869812421,1e-08,3130.9,3130.0,11.41987825]
[1767869812701,1e-08,3130.9,3130.0,4.23305893]
[1767869812905,1e-08,3130.9,3130.0,3.19488817]
[1767869813438,0.908582,3130.9,3130.0,3.19488817]
[1767869813637,0.908582,3130.9,3129.9,1e-07]
[1767869814207,0.90858199,3130.8,3129.9,1e-07]
[1767869815608,4.10268004,3130.8,3129.9,1e-07]
[1767869815808,0.90858199,3130.6,3129.9,1e-07]
[1767869817730,0.90858199,3130.4,3129.9,1e-07]
[1767869817926,0.90858199,3130.3,3129.9,1e-07]
[1767869818945,0.90858199,3130.3,3129.0,3.21563439]
[1767869820043,0.90858199,3130.1,3129.0,6.41154362]
[1767869820351,0.90858199,3129.9,3129.0,3.21563439]
[1767869820538,0.90858199,3129.7,3129.0,6.41154362]
[1767869821230,0.90858199,3129.7,3129.0,3.21563439]
[1767869821429,0.90858199,3129.7,3129.0,0.0197542]
[1767869822013,0.90858199,3129.7,3129.0,3.21564019]
[1767869822207,1.08334019,3129.7,3129.0,6.41154942]
[1767869822644,1.08334019,3129.7,3129.0,0.0197542]
[1767869823644,1.08334019,3129.7,3129.0,3.21565133]
[1767869824148,1.08334019,3129.7,3129.3,0.001]
[1767869824351,1.76459319,3129.6,3129.3,0.001]
[1767869824554,1.95852833,3129.6,3129.3,0.001]
[1767869825557,0.92559319,3129.5,3129.3,0.001]
[1767869827220,0.92559319,3129.5,3128.4,0.79704298]
[1767869828663,0.92559319,3129.5,3127.4,3.23264007]
[1767869828664,0.92559319,3129.4,3127.8,0.79804298]
[1767869828824,6.39082915,3129.5,3128.4,3.19651296]
[1767869828825,0.92559319,3129.2,3128.4,3.19651296]
[1767869829147,0.73164223,3129.3,3128.0,3.19691957]
[1767869829148,0.92559319,3129.0,3128.0,3.19691957]
[1767869829554,0.92559319,3129.0,3128.2,3.19670937]
[1767869829765,0.92559319,3129.0,3127.9,0.79804298]
[1767869829766,0.92559319,3132.0,3130.0,0.92536453]
[1767869829968,6.38552111,3132.1,3130.2,0.96050437]
[1767869829969,0.839,3131.7,3130.2,0.96050437]
[1767869830135,0.839,3131.7,3130.4,0.92536453]
[1767869830763,0.839,3131.7,3130.6,0.92536453]
[1767869831067,1.30148716,3131.5,3130.6,0.92536453]
[1767869833061,1.30148716,3131.5,3130.7,3.19417382]
[1767869833348,0.92559319,3131.4,3130.4,3.19446708]
[1767869833553,0.54204468,3131.3,3130.4,3.19446708]
[1767869833863,1.38104468,3131.3,3130.3,3.19454381]
[1767869834160,1.38104468,3131.3,3130.3,3.19450842]
[1767869834365,1.38104468,3131.3,3130.0,0.92536453]
[1767869834550,1.38104468,3131.3,3130.2,0.92536453]
[1767869834733,0.839,3131.3,3130.2,0.92536453]
[1767869835433,0.839,3131.3,3130.3,6.38916396]
[1767869835968,1.42045388,3130.3,3129.0,0.92536453]
[1767869836173,0.839,3130.2,3129.0,0.92536453]
[1767869836351,0.839,3130.2,3129.3,3.19558268]
[1767869836533,0.839,3130.2,3129.1,3.1957118]
[1767869836861,1.76459319,3130.2,3128.8,3.23125181]
[1767869837026,0.17645932,3130.1,3128.9,0.41566163]
[1767869837226,0.17645932,3130.1,3128.9,3.19594757]
[1767869837227,3.19488817,3130.0,3128.9,3.19594757]
[1767869837529,0.92559319,3129.9,3128.4,0.96050437]
[1767869837733,0.92559319,3129.9,3128.8,3.19608721]
[1767869837929,0.92559319,3129.9,3128.9,3.19600392]
[1767869838532,1.30148716,3129.8,3128.9,3.19600392]
[1767869838862,0.839,3129.7,3128.9,3.83520801]
[1767869839538,0.839,3129.7,3128.9,0.63920409]
[1767869839859,4.03422267,3129.7,3128.7,0.92536453]
[1767869840724,7.22944534,3129.7,3128.5,3.19641746]
[1767869840931,7.22944534,3129.7,3128.3,0.92536453]
[1767869840932,1.30148716,3129.5,3128.7,4.12152454]
[1767869841256,1.30148716,3129.5,3128.7,0.41215245]
[1767869841457,1.30148716,3129.5,3128.4,0.92536453]
[1767869841658,8.61788263,3129.5,3128.4,0.92536453]
[1767869841860,0.92559319,3129.4,3128.1,0.92536453]
[1767869842364,0.92559319,3129.4,3127.8,0.92536453]
[1767869842660,0.92559319,3129.4,3128.3,3.19654483]
[1767869842959,1.78738145,3129.3,3128.3,3.19658122]
[1767869844031,0.92559319,3129.1,3127.8,0.92536453]
[1767869844363,0.92559319,3128.9,3127.9,3.19699436]
[1767869844966,0.839,3129.0,3127.2,0.92536453]
[1767869844967,0.92559319,3128.6,3127.2,0.92536453]
[1767869845131,0.92559319,3128.4,3126.6,0.92536453]
[1767869845330,0.92559319,3128.4,3127.2,0.92536453]
[1767869845761,4.58792864,3129.1,3127.1,0.92536453]
[1767869845968,0.92759319,3132.2,3129.7,0.92536453]
[1767869846135,0.839,3131.4,3129.9,0.92536453]
[1767869846336,0.839,3131.4,3130.1,0.92536453]
[1767869846560,0.839,3131.4,3130.1,2.4719676]
[1767869846760,0.839,3131.4,3129.8,19.08792864]
[1767869846761,0.839,3131.4,3130.2,0.24719676]
[1767869846943,0.839,3131.4,3130.3,0.92536453]
[1767869847434,0.839,3131.4,3129.7,0.92536453]
[1767869848063,3.19356177,3131.3,3129.7,0.92536453]
[1767869848231,3.19356177,3131.3,3129.8,7.31554919]
[1767869849249,0.92559319,3131.2,3129.8,0.92536453]
[1767869849440,1.05062785,3131.1,3129.8,0.92536453]
[1767869849956,1.97622104,3131.1,3129.6,3.19526932]
[1767869850131,6.38773554,3131.0,3129.5,3.19537437]
[1767869850961,0.92559319,3130.9,3129.5,3.19537437]
[1767869851165,0.92559319,3130.9,3129.5,6.39077299]
[1767869851166,0.839,3130.8,3129.5,6.39077299]
[1767869851465,0.17645932,3130.7,3129.5,6.39077299]
[1767869852171,0.17645932,3130.7,3129.5,4.1207389]
[1767869852863,3.37064077,3130.7,3129.5,4.1207389]
[1767869853066,6.56482222,3130.7,3129.5,4.1207389]
[1767869853245,0.17645932,3130.7,3129.5,7.31613752]
[1767869853448,0.839,3130.6,3129.5,7.31613752]
[1767869854457,0.42096345,3130.5,3129.5,4.1207389]
[1767869855480,1.4121601,3130.5,3129.2,3.19562365]
[1767869856274,1.4121601,3130.5,3129.3,3.1956014]
[1767869856567,1.4121601,3130.5,3129.1,4.1197708]
[1767869856568,3.19447993,3130.4,3129.2,6.39139631]
[1767869856768,0.78010182,3130.3,3129.2,6.39139631]
[1767869857144,0.78010182,3130.3,3129.2,3.19569134]
[1767869857470,0.78010182,3130.3,3129.2,4.11969232]
[1767869858939,3.19468404,3130.2,3129.2,4.11969232]
[1767869859141,0.839,3130.1,3129.2,4.11969232]
[1767869859459,0.4033684,3130.0,3129.2,4.11969232]
[1767869859663,1.39456505,3130.0,3128.8,0.001]
[1767869859837,1.39456505,3130.0,3128.8,3.19710475]
[1767869860239,1.39456505,3130.0,3128.9,3.19601054]
[1767869860972,3.19499025,3129.9,3128.8,3.19711326]
[1767869861171,0.45895553,3129.8,3128.8,3.19711326]
[1767869861471,0.45895553,3129.8,3129.5,0.001]
[1767869862141,0.99119665,3129.7,3128.2,0.92400098]
[1767869862344,0.99119665,3129.3,3128.0,3.1968507]
[1767869862573,0.99119665,3129.3,3127.9,0.92400098]
[1767869862970,0.99119665,3129.3,3128.1,0.92400098]
[1767869862971,3.19570497,3129.2,3128.1,0.92400098]
[1767869863147,0.839,3129.1,3128.1,0.92400098]
[1767869864862,6.39181846,3129.0,3128.1,0.92400098]
[1767869865192,0.72308185,3128.9,3127.6,0.92400098]
[1767869865490,1.7142785,3128.9,3127.7,0.92400098]
[1767869865889,0.99119665,3128.8,3127.4,0.92400098]
[1767869866876,0.99119665,3128.8,3127.5,3.19740417]
[1767869867068,5.75132005,3131.9,3128.6,0.92400098]
[1767869867267,0.99119665,3134.0,3128.6,0.92400098]
[1767869867268,0.002,3132.8,3131.3,0.90222681]
[1767869867564,0.837,3132.1,3131.3,0.90222681]
[1767869868017,0.841,3132.2,3131.3,0.90222681]
[1767869868509,0.83900001,3132.1,3131.3,0.90222681]
[1767869868983,0.002,3132.2,3131.5,0.92400098]
[1767869869166,0.002,3132.2,3131.6,1.05043804]
[1767869869361,0.002,3132.2,3131.5,0.92400098]
[1767869869771,0.839,3132.6,3131.5,0.92400098]
[1767869871196,0.83899999,3132.5,3131.6,3.19325584]
[1767869871701,0.83899999,3132.5,3131.3,3.19347671]
[1767869872090,0.83899999,3132.5,3131.0,3.19386473]
[1767869872278,0.80624821,3132.4,3131.3,3.19354537]
[1767869872478,0.80624821,3132.4,3131.3,3.19354618]
[1767869873278,0.002,3132.3,3131.0,7.31173652]
[1767869874091,0.002,3132.3,3131.1,0.92400098]
[1767869875498,0.002,3132.3,3131.2,6.38732754]
[1767869875683,0.83899999,3132.2,3131.2,6.38732754]
[1767869875994,0.83899999,3132.2,3131.2,3.19366377]
[1767869876198,0.83899999,3132.2,3131.2,6.38732754]
[1767869876405,0.83899999,3132.2,3131.2,3.19366377]
[1767869876573,0.83899999,3132.2,3131.2,6.38732754]
[1767869876774,1.24234522,3132.2,3131.2,6.38732754]
[1767869877491,0.83899999,3132.2,3131.2,3.19366377]
[1767869877995,4.03166588,3132.2,3131.2,3.19366377]
[1767869878395,4.03166702,3132.2,3131.2,3.19366377]
[1767869878702,7.22433405,3132.2,3130.7,0.92400098]
[1767869878905,7.22433405,3132.2,3130.0,0.03513984]
[1767869878906,0.4033667,3132.1,3131.1,3.19373495]
[1767869879201,1.2413667,3132.1,3131.1,6.38750071]
[1767869879710,4.43413867,3132.1,3131.1,3.19373495]
[1767869879907,4.43413867,3132.1,3131.1,3.92489391]
[1767869881104,7.62691064,3132.1,3131.1,0.73115896]
[1767869881307,7.62691064,3132.1,3131.0,0.92400098]
[1767869881610,7.62691064,3132.1,3130.5,0.92400098]
[1767869881611,0.99119665,3132.0,3130.5,0.92400098]
[1767869882022,0.838,3131.9,3130.7,4.11809401]
[1767869882191,0.838,3131.9,3130.8,3.19401866]
[1767869882404,0.838,3131.9,3130.7,0.92400098]
[1767869882405,0.1677,3131.8,3130.7,4.11812155]
[1767869883198,1.0974951,3131.8,3130.5,3.19433851]
[1767869883399,0.9297951,3131.8,3130.5,3.19433851]
[1767869883811,6.38630774,3131.7,3130.4,3.19447993]
[1767869883994,0.838,3131.6,3130.5,1.00737332]
[1767869884193,0.838,3131.6,3130.6,0.73963332]
[1767869885093,0.83899999,3131.5,3130.6,0.73963332]
[1767869885289,0.83899999,3131.5,3130.7,0.97542955]
[1767869885588,0.83899999,3131.5,3130.7,1.00737128]
[1767869885797,0.83899999,3131.5,3130.9,0.97542955]
[1767869886003,0.83899999,3131.5,3131.0,0.73735732]
[1767869887102,0.83899999,3131.5,3131.0,0.001]
[1767869889196,4.03236008,3131.5,3131.0,0.001]
[1767869890040,0.83899999,3131.5,3131.0,0.001]
[1767869890586,4.03236432,3131.5,3131.0,0.001]
[1767869891588,0.83899999,3131.5,3131.0,0.001]
[1767869891789,0.838,3131.4,3131.0,0.001]
[1767869892286,0.838,3131.7,3131.0,0.001]
[1767869892506,0.838,3131.6,3131.0,0.001]
[1767869893193,1.76043815,3131.6,3131.0,0.001]
[1767869894104,0.92243815,3131.6,3131.0,0.001]
[1767869894292,1.67699999,3131.5,3131.0,0.001]
[1767869896016,0.83899999,3131.5,3131.0,0.001]
[1767869896188,0.838,3131.4,3131.0,0.001]
[1767869897896,0.838,3131.4,3131.2,0.001]
[1767869899211,0.83899999,3131.3,3131.2,0.001]
[1767869899718,1.76143814,3131.3,3131.0,0.001]
[1767869899927,0.92243815,3131.2,3130.0,4.17025076]
[1767869900241,0.92243815,3131.2,3130.2,3.19463046]
[1767869900398,0.92243815,3131.2,3130.0,0.97542955]
[1767869900598,0.92243815,3131.0,3130.0,7.36515631]
[1767869900852,0.838,3130.9,3130.0,7.36515631]
[1767869901043,0.838,3130.9,3130.1,0.73651563]
[1767869901449,0.838,3130.9,3129.5,0.001]
[1767869901450,0.92243815,3130.8,3129.5,0.001]
[1767869901615,0.92243815,3130.8,3129.5,3.19632045]
[1767869901819,0.92243815,3130.8,3129.5,3.19635301]
[1767869902020,0.92243815,3130.8,3129.5,3.19636823]
[1767869902748,0.92243815,3130.6,3129.5,3.19636823]
[1767869903055,0.92243815,3130.6,3129.5,0.001]
[1767869905026,0.92243815,3130.4,3129.5,0.001]